fUSD/lending_fUSD_20240916
["ID","MTS","AMOUNT","RATE_DAILY","PERIOD"]
[338298911,1726486252915,-813.95,0.00014794,2]
[338298913,1726486252924,-813.95,0.00014794,2]
[338298915,1726486252933,-813.95,0.00014794,2]
[338298917,1726486252943,-813.95,0.00014794,2]
[338298919,1726486252952,-813.95,0.00014794,2]
[338298921,1726486252961,-813.95,0.00014794,2]
[338298923,1726486252970,-813.95,0.00014794,2]
[338298925,1726486252980,-813.95,0.00014794,2]
[338298927,1726486252989,-750.62784902,0.00014794,2]
[338298939,1726486253093,-63.32215098,0.00014794,2]
[338298941,1726486253103,-577.98597985,0.00014794,2]
[338298943,1726486253114,-236.02677078,0.00014794,2]
[338298945,1726486253123,-497.94214035,0.00014794,2]
[338298947,1726486253135,-150.32542087,0.00014794,2]
[338298949,1726486253144,-355.34123297,0.00014794,2]
[338298952,1726486253156,-269.62876703,0.00014794,2]
[338298954,1726486253166,-183.53713915,0.00014794,2]
[338298969,1726486253307,500.0,0.00028,120]
[338298974,1726486253343,-931.0,0.00014139,2]
[338298976,1726486253352,-151.0,0.00014689,2]
[338298978,1726486253361,-151.0,0.00014689,2]
[338298980,1726486253371,-151.0,0.0001475,2]
[338298982,1726486253380,-151.0,0.00014779,2]
[338298984,1726486253389,-441.43286085,0.00014794,2]
[338298986,1726486253399,-624.97,0.00014794,2]
[338298988,1726486253409,-500.0,0.00014794,2]
[338298990,1726486253418,-624.97,0.00014794,2]
[338298992,1726486253428,-500.0,0.00014794,2]
[338298994,1726486253437,-624.97,0.00014794,2]
[338298996,1726486253446,-500.0,0.00014794,2]
[338298998,1726486253455,-500.0,0.00014794,2]
[338299000,1726486253465,-624.97,0.00014794,2]
[338299022,1726486253672,-500.0,0.00014794,2]
[338299024,1726486253683,-624.97,0.00014794,2]
[338299026,1726486253692,-500.0,0.00014794,2]
[338299028,1726486253701,-624.97,0.00014794,2]
[338299030,1726486253711,-500.0,0.00014794,2]
[338299032,1726486253720,-624.97,0.00014794,2]
[338299034,1726486253729,-500.0,0.00014794,2]
[338299036,1726486253738,-624.97,0.00014794,2]
[338299038,1726486253747,-500.0,0.00014794,2]
[338299040,1726486253758,-624.97,0.00014794,2]
[338299042,1726486253767,-500.0,0.00014794,2]
[338299044,1726486253776,-528.48210118,0.00014794,2]
[338299112,1726486254421,500.0,0.00028,120]
[338299122,1726486254513,500.0,0.00028,120]
[338299360,1726486257097,500.0,0.00028,120]
[338299462,1726486258292,500.0,0.00028,120]
[338299474,1726486258548,500.0,0.00028,120]
[338299495,1726486258900,500.0,0.00028,120]
[338299522,1726486259157,500.0,0.00028,120]
[338299555,1726486259457,500.0,0.00028,120]
[338299583,1726486259710,181.08364088,0.00028,120]
[338300932,1726486307624,436.19,0.00011899,2]
[338300933,1726486323851,305.69763113,0.00026137,120]
[338300937,1726486408883,500.0,0.00024768,120]
[338300938,1726486409292,500.0,0.00025222,120]
[338300939,1726486409804,500.0,0.00025876,120]
[338300940,1726486410344,500.0,0.00026531,120]
[338300941,1726486410850,500.0,0.00027185,120]
[338300942,1726486411669,500.0,0.0002784,120]
[338300943,1726486415538,2000.0,0.00025222,120]
[338300944,1726486416029,2000.0,0.00026521,120]
[338300945,1726486416493,2000.0,0.00027821,120]
[338300946,1726486438351,500.0,0.00025222,120]
[338300947,1726486438822,500.0,0.00026671,120]
[338300948,1726486448682,500.0,0.00025222,120]
[338300949,1726486449132,500.0,0.00026232,120]
[338300950,1726486449670,500.0,0.00027242,120]
[338300951,1726486483189,200.0,0.00025222,120]
[338300960,1726486693920,36779.0,0.00028,120]
[338300961,1726486695917,-3239.87471541,0.00013318,2]
[338300962,1726486695948,-333.81635729,0.00013318,2]
[338300963,1726486695976,-250.0,0.00013503,2]
[338300964,1726486696008,-156.69,0.00013557,2]
[338300965,1726486696038,-156.69,0.00013579,2]
[338300966,1726486696067,-360.0,0.00013586,2]
[338300967,1726486696097,-707.64733332,0.00013597,2]
[338300968,1726486696129,-156.69,0.00013602,2]
[338300969,1726486696158,-250.0,0.00013621,2]
[338300970,1726486696187,-156.69,0.00013624,2]
[338300971,1726486696217,-298.84,0.00013639,2]
[338300972,1726486696247,-23900.0,0.00013643,2]
[338300973,1726486714187,-150.0,0.00013665,2]
[338300974,1726486714219,-150.0,0.00013699,2]
[338300975,1726486714251,-155.88,0.00013706,2]
[338300976,1726486714283,-439.49,0.00013706,2]
[338300977,1726486714318,-322.06,0.00013738,2]
[338300978,1726486714350,-499.99,0.00013738,2]
[338300979,1726486714392,-2491.72,0.00013738,2]
[338300981,1726486733087,5088.5,0.00028,120]
[338300986,1726486787031,151.1,0.00010959,2]
[338300987,1726486799278,9559.3802,0.00013318,2]
[338300990,1726486837243,441.18,0.00011822,2]
[338300993,1726486853197,170.9,0.00013735,2]
[338300994,1726486855346,721.67,0.00013735,2]
[338300995,1726486858730,500.0,0.00028,120]
[338300997,1726486860264,152.35,0.00013738,2]
[338300998,1726486865634,500.0,0.00028,120]
[338300999,1726486875081,1056.24,0.0002798,120]
[338301000,1726486876730,500.0,0.00028,120]
[338301001,1726486883640,500.0,0.00028,120]
[338301002,1726486891815,500.0,0.00028,120]
[338301003,1726486898945,500.0,0.00028,120]
[338301004,1726486901458,200.0,0.00013738,2]
[338301005,1726486906113,500.0,0.00028,120]
[338301006,1726486913316,500.0,0.00028,120]
[338301007,1726486920353,500.0,0.00028,120]
[338301008,1726486926993,500.0,0.00028,120]
[338301009,1726486934404,500.0,0.00028,120]
[338301011,1726486944918,500.0,0.00028,120]
[338301012,1726486952382,500.0,0.00028,120]
[338301014,1726486961052,500.0,0.00028,120]
[338301016,1726486964285,150.0,0.00013699,2]
[338301017,1726486967055,500.0,0.00028,120]
[338301018,1726486992348,561.06161344,0.00028,120]
[338301019,1726487006347,500.0,0.00024714,120]
[338301020,1726487006766,500.0,0.00025222,120]
[338301021,1726487007243,500.0,0.00025955,120]
[338301022,1726487008142,500.0,0.00026689,120]
[338301023,1726487008230,500.0,0.00027422,120]
[338301024,1726487011931,2000.0,0.00025222,120]
[338301025,1726487012333,2000.0,0.00026448,120]
[338301026,1726487012836,2000.0,0.00027675,120]
[338301027,1726487038165,500.0,0.00025222,120]
[338301028,1726487038611,500.0,0.00026567,120]
[338301029,1726487039074,500.0,0.00027912,120]
[338301030,1726487047420,172.14,0.00013735,2]
[338301031,1726487059981,500.0,0.00025222,120]
[338301032,1726487060526,500.0,0.00026232,120]
[338301033,1726487061655,500.0,0.00027242,120]
[338301034,1726487095891,712.0,0.0001372,2]
[338301035,1726487096149,200.0,0.00025222,120]
[338301036,1726487108035,150.0,0.0001329,2]
[338301037,1726487108366,150.0,0.0001366,2]
[338301038,1726487111744,150.0,0.0001329,2]
[338301039,1726487120325,150.0,0.0001329,2]
[338301040,1726487124027,150.0,0.0001329,2]
[338301041,1726487132642,150.0,0.0001329,2]
[338301042,1726487204461,510.0,0.00027397,120]
[338301043,1726487204744,510.0,0.00027671,120]
[338301044,1726487205008,510.0,0.00027945,120]
[338301045,1726487273903,250.0,0.00013703,2]
[338301046,1726487312142,181.08,0.00010959,2]
[338301047,1726487313493,2633.0,0.00028,120]
[338301058,1726487337196,360.83,0.00013697,2]
[338301064,1726487379516,446.57,0.00011788,2]
[338301065,1726487404593,158.18,0.00013731,2]
[338301070,1726487432019,-250.0,0.00013741,2]
[338301071,1726487432030,-53.4456781,0.00013783,2]
[338301072,1726487432043,-96.5543219,0.00013783,2]
[338301073,1726487432054,-150.0,0.00014029,2]
[338301074,1726487432064,-25.66375438,0.00014051,2]
[338301075,1726487432077,-420.90624562,0.00014051,2]
[338301076,1726487432089,-150.0,0.00014063,2]
[338301077,1726487432099,-150.0,0.00014275,2]
[338301078,1726487432110,-300.0,0.00014317,2]
[338301079,1726487432120,-1879.09375438,0.00014318,2]
[338301081,1726487432133,-11603.90624562,0.00014318,2]
[338301083,1726487432143,-150.0,0.00014398,2]
[338301085,1726487432154,-404.74,0.00014398,2]
[338301086,1726487432164,-8271.22,0.00014427,2]
[338301087,1726487432174,-150.0,0.00014427,2]
[338301089,1726487432185,-150.0,0.00014521,2]
[338301090,1726487432195,-150.0,0.00014543,2]
[338301091,1726487432205,-150.0,0.00014556,2]
[338301092,1726487432215,-934.1207825,0.00014575,2]
[338301093,1726487432225,-243.7004269,0.00014582,2]
[338301094,1726487432236,-150.0,0.00014584,2]
[338301095,1726487432246,-1500.0,0.0001462,2]
[338301096,1726487432256,-150.0,0.00014637,2]
[338301097,1726487432266,-1077.19959479,0.00014649,2]
[338301098,1726487432276,-1110.66361,0.0001465,2]
[338301099,1726487432286,-500.0,0.00014675,2]
[338301100,1726487432296,-200.0,0.00014675,2]
[338301101,1726487432306,-500.0,0.00014675,2]
[338301102,1726487432316,-500.0,0.00014675,2]
[338301103,1726487432326,-200.0,0.00014675,2]
[338301104,1726487432336,-500.0,0.00014675,2]
[338301105,1726487432346,-500.0,0.00014675,2]
[338301106,1726487432355,-500.0,0.00014675,2]
[338301107,1726487432365,-200.0,0.00014675,2]
[338301108,1726487432375,-500.0,0.00014675,2]
[338301109,1726487432386,-500.0,0.00014675,2]
[338301110,1726487432396,-200.0,0.00014675,2]
[338301111,1726487432411,-500.0,0.00014676,2]
[338301112,1726487432420,-500.0,0.00014676,2]
[338301113,1726487432430,-500.0,0.00014676,2]
[338301114,1726487432440,-500.0,0.00014676,2]
[338301115,1726487432450,-500.0,0.00014676,2]
[338301116,1726487432460,-500.0,0.00014676,2]
[338301117,1726487432471,-500.0,0.00014676,2]
[338301118,1726487432481,-500.0,0.00014676,2]
[338301119,1726487432491,-500.0,0.00014676,2]
[338301120,1726487432501,-500.0,0.00014676,2]
[338301121,1726487432512,-500.0,0.00014676,2]
[338301122,1726487432525,-200.0,0.00014676,2]
[338301123,1726487432535,-200.0,0.00014676,2]
[338301124,1726487432544,-200.0,0.00014676,2]
[338301125,1726487432554,-200.0,0.00014676,2]
[338301126,1726487432565,-200.0,0.00014676,2]
[338301127,1726487432575,-2303.0118,0.0001468,2]
[338301128,1726487432585,-26582.9024,0.0001468,2]
[338301129,1726487432595,-337.21426583,0.00014687,2]
[338301130,1726487432605,-372.441,0.00014694,2]
[338301131,1726487432615,-203.2651,0.00014694,2]
[338301132,1726487432624,-1439.358,0.00014694,2]
[338301133,1726487432634,-1420.5123,0.00014694,2]
[338301134,1726487432644,-1193.6943,0.00014694,2]
[338301135,1726487432654,-2500.0,0.00014694,2]
[338301136,1726487432663,-160.54050509,0.00014694,2]
[338301137,1726487432673,-268.99293246,0.00014694,2]
[338301138,1726487432683,-327.64903321,0.00014694,2]
[338301139,1726487432693,-166.49941824,0.00014694,2]
[338301140,1726487432703,-150.0,0.00014704,2]
[338301141,1726487432713,-500.0,0.00014715,2]
[338301142,1726487432722,-150.0,0.0001472,2]
[338301143,1726487432732,-500.0,0.00014724,2]
[338301144,1726487432742,-175.5238322,0.00014725,2]
[338301145,1726487432751,-500.0,0.00014732,2]
[338301146,1726487432760,-1498.02361082,0.0001474,2]
[338301147,1726487432770,-500.0,0.00014741,2]
[338301148,1726487432780,-268.99293245,0.00014746,2]
[338301149,1726487432790,-500.0,0.0001475,2]
[338301150,1726487432800,-150.0,0.00014754,2]
[338301151,1726487432810,-500.0,0.00014759,2]
[338301152,1726487432819,-1498.02361082,0.00014763,2]
[338301153,1726487432829,-150.0,0.00014763,2]
[338301154,1726487432839,-150.0,0.00014767,2]
[338301155,1726487432853,-150.0,0.00014767,2]
[338301156,1726487432864,-150.0,0.00014767,2]
[338301157,1726487432873,-150.0,0.00014767,2]
[338301158,1726487432884,-500.0,0.00014768,2]
[338301159,1726487432894,-500.0,0.00014776,2]
[338301160,1726487432904,-500.0,0.00014785,2]
[338301161,1726487432915,-1498.02361082,0.00014786,2]
[338301162,1726487432925,-1549.68126221,0.00014789,6]
[338301163,1726487432935,-150.0,0.00014792,2]
[338301164,1726487432945,-504.0,0.00014794,2]
[338301165,1726487432955,-971.0,0.00014794,2]
[338301166,1726487432965,-183.27069888,0.00014794,2]
[338301167,1726487432975,-164.65877344,0.00014794,2]
[338301168,1726487432985,-3249.02106143,0.00014794,2]
[338301169,1726487432995,-96.48789882,0.00014794,2]
[338301170,1726487433005,-500.0,0.00014794,2]
[338301171,1726487433015,-624.97,0.00014794,2]
[338301172,1726487433025,-335.94597049,0.00014794,2]
[338301173,1726487433104,-164.05402951,0.00014794,2]
[338301174,1726487433115,-624.97,0.00014794,2]
[338301175,1726487433125,-500.0,0.00014794,2]
[338301176,1726487433135,-211.77408129,0.00014794,2]
[338301178,1726487437991,-331.23941646,0.00014794,2]
[338301179,1726487438252,-81.95650225,0.00014794,2]
[338301181,1726487438262,-488.68751242,0.00014794,2]
[338301183,1726487438275,-11.31248758,0.00014794,2]
[338301185,1726487438285,-624.97,0.00014794,2]
[338301187,1726487438294,-192.57,0.00014794,2]
[338301189,1726487438304,-345.13458056,0.00014794,2]
[338301191,1726487438317,-279.83541944,0.00014794,2]
[338301193,1726487438327,-624.97,0.00014794,2]
[338301195,1726487438336,-624.97,0.00014794,2]
[338301197,1726487438346,-536.11222783,0.00014794,2]
[338301393,1726487440243,-88.85777217,0.00014794,2]
[338301395,1726487440253,-624.97,0.00014794,2]
[338301398,1726487440263,-624.97,0.00014794,2]
[338301400,1726487440274,-624.97,0.00014794,2]
[338301402,1726487440283,-625.01,0.00014794,2]
[338301404,1726487440293,-500.0,0.00014794,2]
[338301406,1726487440302,-500.0,0.00014794,2]
[338301408,1726487440311,-500.0,0.00014794,2]
[338301410,1726487440321,-500.0,0.00014794,2]
[338301412,1726487440331,-500.0,0.00014794,2]
[338301414,1726487440340,-500.0,0.00014794,2]
[338301415,1726487440350,-500.0,0.00014794,2]
[338301417,1726487440359,-500.0,0.00014794,2]
[338301419,1726487440369,-512.1,0.00014794,2]
[338301421,1726487440378,-500.0,0.00014794,2]
[338301423,1726487440388,-500.0,0.00014794,2]
[338301425,1726487440398,-500.0,0.00014794,2]
[338301428,1726487440407,-618.38,0.00014794,2]
[338301429,1726487440416,-1023.25,0.00014794,2]
[338301431,1726487440426,-1023.25,0.00014794,2]
[338301433,1726487440435,-1023.25,0.00014794,2]
[338301435,1726487440445,-1023.25,0.00014794,2]
[338301437,1726487440455,-1023.25,0.00014794,2]
[338301439,1726487440465,-1023.25,0.00014794,2]
[338301441,1726487440474,-1203.11,0.00014794,2]
[338301443,1726487440484,-1023.25,0.00014794,2]
[338301445,1726487440493,-1203.11,0.00014794,2]
[338301447,1726487440503,-1023.25,0.00014794,2]
[338301449,1726487440513,-1203.11,0.00014794,2]
[338301451,1726487440523,-1023.25,0.00014794,2]
[338301453,1726487440532,-1203.11,0.00014794,2]
[338301455,1726487440542,-1023.25,0.00014794,2]
[338301458,1726487440551,-1203.11,0.00014794,2]
[338301460,1726487440562,-1023.25,0.00014794,2]
[338301462,1726487440571,-1203.11,0.00014794,2]
[338301464,1726487440580,-1023.25,0.00014794,2]
[338301466,1726487440589,-1203.11,0.00014794,2]
[338301468,1726487440600,-1023.25,0.00014794,2]
[338301470,1726487440610,-1203.11,0.00014794,2]
[338301472,1726487440619,-1023.25,0.00014794,2]
[338301474,1726487440633,-1203.11,0.00014794,2]
[338301476,1726487440642,-1023.25,0.00014794,2]
[338301478,1726487440652,-1203.11,0.00014794,2]
[338301480,1726487440661,-1023.25,0.00014794,2]
[338301482,1726487440671,-1203.11,0.00014794,2]
[338301484,1726487440680,-1023.25,0.00014794,2]
[338301486,1726487440689,-1203.11,0.00014794,2]
[338301488,1726487440699,-1023.25,0.00014794,2]
[338301490,1726487440710,-1203.11,0.00014794,2]
[338301492,1726487440719,-1023.25,0.00014794,2]
[338301494,1726487440730,-1203.11,0.00014794,2]
[338301496,1726487440740,-1023.25,0.00014794,2]
[338301498,1726487440750,-1203.11,0.00014794,2]
[338301500,1726487440759,-1203.11,0.00014794,2]
[338301502,1726487440768,-1023.25,0.00014794,2]
[338301504,1726487440778,-1203.11,0.00014794,2]
[338301506,1726487440787,-1023.25,0.00014794,2]
[338301508,1726487440797,-1203.11,0.00014794,2]
[338301510,1726487440807,-1023.25,0.00014794,2]
[338301512,1726487440816,-1203.11,0.00014794,2]
[338301514,1726487440825,-1203.11,0.00014794,2]
[338301516,1726487440835,-1023.33,0.00014794,2]
[338301518,1726487440844,-1203.11,0.00014794,2]
[338301520,1726487440854,-1203.11,0.00014794,2]
[338301522,1726487440863,-1203.11,0.00014794,2]
[338301524,1726487440873,-1203.24400762,0.00014794,2]
[338301526,1726487440883,-834.32,0.00014794,2]
[338301528,1726487440893,-834.32,0.00014794,2]
[338301531,1726487440903,-834.32,0.00014794,2]
[338301533,1726487440913,-834.32,0.00014794,2]
[338301535,1726487440923,-834.32,0.00014794,2]
[338301537,1726487440933,-834.32,0.00014794,2]
[338301539,1726487440943,-834.32,0.00014794,2]
[338301541,1726487440952,-834.32,0.00014794,2]
[338301543,1726487440962,-834.32,0.00014794,2]
[338301545,1726487440972,-834.32,0.00014794,2]
[338301547,1726487440982,-834.32,0.00014794,2]
[338301549,1726487440991,-834.32,0.00014794,2]
[338301551,1726487441001,-834.32,0.00014794,2]
[338301553,1726487441011,-834.32,0.00014794,2]
[338301555,1726487441020,-834.32,0.00014794,2]
[338301557,1726487441030,-834.32,0.00014794,2]
[338301559,1726487441040,-834.32,0.00014794,2]
[338301561,1726487441050,-834.32,0.00014794,2]
[338301564,1726487441059,-834.32,0.00014794,2]
[338301566,1726487441070,-834.32,0.00014794,2]
[338301568,1726487441080,-834.32,0.00014794,2]
[338301570,1726487441090,-834.32,0.00014794,2]
[338301572,1726487441100,-834.32,0.00014794,2]
[338301574,1726487441111,-834.47,0.00014794,2]
[338301576,1726487441120,-643.56566045,0.00014794,2]
[338301578,1726487441129,-848.16,0.00014794,2]
[338301580,1726487441139,-848.16,0.00014794,2]
[338301582,1726487441150,-848.16,0.00014794,2]
[338301584,1726487441160,-848.16,0.00014794,2]
[338301586,1726487441170,-848.16,0.00014794,2]
[338301588,1726487441180,-848.16,0.00014794,2]
[338301590,1726487441191,-848.16,0.00014794,2]
[338301592,1726487441202,-848.16,0.00014794,2]
[338301594,1726487441213,-1738.88,0.00014794,2]
[338301597,1726487441223,-848.16,0.00014794,2]
[338301599,1726487441233,-1738.88,0.00014794,2]
[338301601,1726487441242,-848.16,0.00014794,2]
[338301603,1726487441252,-1738.88,0.00014794,2]
[338301604,1726487441262,-848.16,0.00014794,2]
[338301606,1726487441272,-1738.88,0.00014794,2]
[338301608,1726487441281,-848.16,0.00014794,2]
[338301610,1726487441291,-1738.88,0.00014794,2]
[338301613,1726487441301,-848.16,0.00014794,2]
[338301615,1726487441312,-1738.88,0.00014794,2]
[338301617,1726487441321,-848.16,0.00014794,2]
[338301619,1726487441331,-1738.88,0.00014794,2]
[338301621,1726487441341,-848.16,0.00014794,2]
[338301623,1726487441351,-1738.88,0.00014794,2]
[338301625,1726487441360,-848.16,0.00014794,2]
[338301627,1726487441370,-1738.88,0.00014794,2]
[338301629,1726487441379,-848.16,0.00014794,2]
[338301631,1726487441389,-1738.88,0.00014794,2]
[338301633,1726487441399,-848.16,0.00014794,2]
[338301635,1726487441409,-657.61763365,0.00014794,2]
[338301643,1726487441483,-474.81445996,0.00014794,2]
[338301646,1726487441499,-457.48213202,0.00014794,2]
[338301648,1726487441512,-148.96577437,0.00014794,2]
[338301650,1726487441524,-356.19522563,0.00014794,2]
[338301653,1726487441536,-491.96477437,0.00014794,2]
[338301655,1726487441546,-831.76124505,0.00014794,2]
[338301779,1726487442909,-152.35,0.00013919,2]
[338301781,1726487442919,-201.0600011,0.00014794,2]
[338301787,1726487442963,-706.05875385,0.00014794,2]
[338301789,1726487442973,-38.44124615,0.00014794,2]
[338301791,1726487442986,-809.71875385,0.00014794,2]
[338301793,1726487442996,-1738.88,0.00014794,2]
[338301795,1726487443006,-848.16,0.00014794,2]
[338301797,1726487443015,-1738.88,0.00014794,2]
[338301799,1726487443025,-848.16,0.00014794,2]
[338301801,1726487443034,-1738.88,0.00014794,2]
[338301803,1726487443044,-848.16,0.00014794,2]
[338301805,1726487443053,-950.68227371,0.00014794,2]
[338301808,1726487443068,-788.19772629,0.00014794,2]
[338301810,1726487443078,-352.64668206,0.00014794,2]
[338301964,1726487444618,-495.51331794,0.00014794,2]
[338301966,1726487444628,-1738.88,0.00014794,2]
[338301968,1726487444638,-1663.7470988,0.00014794,2]
[338301971,1726487444651,-75.1329012,0.00014794,2]
[338301973,1726487444660,-226.8670988,0.00014794,2]
[338301975,1726487444672,-1512.0129012,0.00014794,2]
[338301977,1726487444682,-1738.88,0.00014794,2]
[338301979,1726487444692,-1738.88,0.00014794,2]
[338301981,1726487444702,-1738.88,0.00014794,2]
[338301983,1726487444712,-1738.88,0.00014794,2]
[338301985,1726487444722,-1739.03433122,0.00014794,2]
[338301987,1726487444732,-500.0,0.00014794,2]
[338301989,1726487444742,-240.48,0.00014794,2]
[338301991,1726487444751,-631.93,0.00014794,2]
[338301993,1726487444761,-631.93,0.00014794,2]
[338301995,1726487444771,-631.93,0.00014794,2]
[338301997,1726487444781,-141.22849043,0.00014794,2]
[338302000,1726487444799,-490.70150957,0.00014794,2]
[338302002,1726487444809,-631.93,0.00014794,2]
[338302004,1726487444819,-631.93,0.00014794,2]
[338302006,1726487444829,-631.93,0.00014794,2]
[338302008,1726487444839,-631.93,0.00014794,2]
[338302010,1726487444848,-631.93,0.00014794,2]
[338302012,1726487444858,-631.93,0.00014794,2]
[338302014,1726487444868,-631.93,0.00014794,2]
[338302015,1726487444877,-631.93,0.00014794,2]
[338302017,1726487444887,-631.93,0.00014794,2]
[338302042,1726487444897,-631.93,0.00014794,2]
[338302044,1726487445131,-631.93,0.00014794,2]
[338302046,1726487445141,-631.93,0.00014794,2]
[338302048,1726487445152,-631.93,0.00014794,2]
[338302050,1726487445162,-631.93,0.00014794,2]
[338302052,1726487445172,-631.93,0.00014794,2]
[338302054,1726487445181,-631.93,0.00014794,2]
[338302056,1726487445192,-631.93,0.00014794,2]
[338302058,1726487445202,-631.93,0.00014794,2]
[338302060,1726487445212,-631.93,0.00014794,2]
[338302062,1726487445222,-632.11239714,0.00014794,2]
[338302064,1726487445232,-488.04781864,0.00014794,2]
[338302131,1726487445854,-150.0,0.00013842,2]
[338302133,1726487445864,-150.0,0.00014212,2]
[338302135,1726487445874,-150.0,0.00014582,2]
[338302137,1726487445884,-115.93218136,0.00014794,2]
[338302139,1726487445893,-603.98,0.00014794,2]
[338302141,1726487445903,-603.98,0.00014794,2]
[338302143,1726487445912,-603.98,0.00014794,2]
[338302145,1726487445922,-92.92548626,0.00014794,2]
[338302147,1726487445936,-263.86078829,0.00014794,2]
[338302185,1726487446311,-247.19372545,0.00014794,2]
[338302187,1726487446322,-603.98,0.00014794,2]
[338302189,1726487446332,-603.98,0.00014794,2]
[338302191,1726487446341,-603.98,0.00014794,2]
[338302194,1726487446351,-603.98,0.00014794,2]
[338302195,1726487446361,-603.98,0.00014794,2]
[338302197,1726487446370,-603.98,0.00014794,2]
[338302199,1726487446379,-603.98,0.00014794,2]
[338302203,1726487446389,-603.98,0.00014794,2]
[338302205,1726487446399,-603.98,0.00014794,2]
[338302207,1726487446409,-603.98,0.00014794,2]
[338302209,1726487446419,-603.98,0.00014794,2]
[338302211,1726487446429,-603.98,0.00014794,2]
[338302213,1726487446438,-603.98,0.00014794,2]
[338302215,1726487446447,-603.98,0.00014794,2]
[338302217,1726487446457,-603.98,0.00014794,2]
[338302219,1726487446467,-603.98,0.00014794,2]
[338302221,1726487446476,-603.98,0.00014794,2]
[338302223,1726487446485,-603.98,0.00014794,2]
[338302225,1726487446494,-604.1473384,0.00014794,2]
[338302227,1726487446504,-518.15,0.00014794,2]
[338302229,1726487446513,-518.15,0.00014794,2]
[338302230,1726487446523,-518.15,0.00014794,2]
[338302233,1726487446534,-518.15,0.00014794,2]
[338302234,1726487446545,-518.15,0.00014794,2]
[338302236,1726487446555,-518.15,0.00014794,2]
[338302238,1726487446564,-518.15,0.00014794,2]
[338302240,1726487446573,-518.15,0.00014794,2]
[338302242,1726487446583,-518.15,0.00014794,2]
[338302244,1726487446592,-518.15,0.00014794,2]
[338302246,1726487446602,-518.15,0.00014794,2]
[338302248,1726487446611,-518.15,0.00014794,2]
[338302250,1726487446621,-518.15,0.00014794,2]
[338302253,1726487446631,-518.15,0.00014794,2]
[338302254,1726487446640,-518.15,0.00014794,2]
[338302256,1726487446650,-518.15,0.00014794,2]
[338302258,1726487446659,-518.15,0.00014794,2]
[338302260,1726487446669,-518.15,0.00014794,2]
[338302262,1726487446679,-518.15,0.00014794,2]
[338302264,1726487446689,-518.15,0.00014794,2]
[338302266,1726487446701,-518.15,0.00014794,2]
[338302268,1726487446711,-518.15,0.00014794,2]
[338302270,1726487446720,-518.15,0.00014794,2]
[338302272,1726487446730,-518.28486709,0.00014794,2]
[338302274,1726487446740,-500.0,0.00014794,2]
[338302276,1726487446749,-500.0,0.00014794,2]
[338302278,1726487446759,-500.0,0.00014794,2]
[338302280,1726487446768,-500.0,0.00014794,2]
[338302282,1726487446777,-500.0,0.00014794,2]
[338302284,1726487446787,-500.0,0.00014794,2]